[Event "FIDE WCCC Open-08 2024"]
[Site "Montesilvano"]
[Date "2024.11.19"]
[Round "5.14"]
[White "Tuguldur, Baatarchuluun"]
[Black "Singh, Ian Avery"]
[Result "0-1"]
[ECO "B22"]
[WhiteElo "1590"]
[BlackElo "1713"]
[Annotator "NA RC"]
[PlyCount "101"]
[EventDate "2024.11.18"]
[EventType "swiss"]
[EventCountry "ITA"]
[SourceTitle "playchess.com"]
[Source "ChessBase"]
[SourceQuality "1"]
[TimeControl "5400+30"]

1. e4 {[%emt 1:31:00]} c5 {[%emt 0:00:04]} 2. c3 {[%emt 0:00:00]} d5 {[%emt 0:00:06]} 3. exd5 {[%emt 0:00:00]} Qxd5 {[%emt 0:00:07]} 4. d4 {[%emt 0:00:00]} Nc6 {[%emt 0:00:07]} 5. Nf3 {[%emt 0:00:00]} Bf5 {[%emt 0:00:06]} 6. Be2 {[%emt 0:00:00]} cxd4 {[%emt 0:00:08]} 7. cxd4 {[%emt 0:00:00]} Bxb1 {[%emt 0:03:21]} 8. Rxb1 {[%emt 0:00:00]} e6 {[%emt 0:00:05]} 9. a3 {[%emt 0:00:00]} Nf6 {[%emt 0:02:07]} 10. O-O {[%emt 0:00:00]} Be7 {[%emt 0:00:52]} 11. h3 {[%emt 0:00:00]} O-O {[%emt 0:00:11]} 12. Be3 {[%emt 0:00:00]} Rac8 {[%emt 0:02:17]} 13. Rc1 {[%emt 0:00:00]} Qd6 {[%emt 0:03:24]} 14. Bd3 {[%emt 0:00:00]} Nd5 {[%emt 0:02:43]} 15. Bg5 {[%emt 0:00:00]} Bxg5 {[%emt 0:09:29]} 16. Nxg5 {[%emt 0:00:00]} h6 {[%emt 0:03:06]} 17. Ne4 {[%emt 0:00:00]} Qe7 {[%emt 0:02:10]} 18. Bb1 {[%emt 0:00:00]} Rfd8 {[%emt 0:03:52]} 19. Qd3 {[%emt 0:00:00]} Nf4 {[%emt 0:01:32]} 20. Qe3 {[%emt 0:00:00]} Nxd4 {[%emt 0:11:40]} 21. Rxc8 {[%emt 0:00:00]} Rxc8 {[%emt 0:01:12]} 22. g3 {[%emt 0:00:00]} Nxh3+ {[%emt 0:04:15]} 23. Kg2 {[%emt 0:00:00]} Nf5 {[%emt 0:00:18]} 24. Qd3 {[%emt 0:00:00]} Rd8 {[%emt 0:04:42]} 25. Qc2 {[%emt 0:00:00]} Ng5 {[%emt 0:00:50]} 26. g4 {[%emt 0:00:00]} Nxe4 {[%emt 0:09:05]} 27. Qxe4 {[%emt 0:00:00]} Rd4 {[%emt 0:00:45]} 28. Qe5 {[%emt 0:00:00]} Qg5 {[%emt 0:06:43]} 29. Qb8+ {[%emt 0:00:00]} Kh7 {[%emt 0:01:04]} 30. f3 {[%emt 0:00:00]} Rd2+ {[%emt 0:00:40]} 31. Rf2 {[%emt 0:00:00]} Rxf2+ {[%emt 0:02:12]} 32. Kxf2 {[%emt 0:00:00]} Qd2+ {[%emt 0:00:08]} 33. Kf1 {[%emt 0:00:00]} Qd1+ {[%emt 0:00:54]} 34. Kf2 {[%emt 0:00:00]} Qxb1 {[%emt 0:00:09]} 35. gxf5 {[%emt 0:00:00]} Qxb2+ {[%emt 0:00:09]} 36. Kg3 {[%emt 0:00:00]} exf5 {[%emt 0:00:26]} 37. Qc8 {[%emt 0:00:00]} g6 {[%emt 0:00:59]} 38. Qf8 {[%emt 0:00:00]} Qa2 {[%emt 0:01:16]} 39. Qc8 {[%emt 0:00:00]} h5 {[%emt 0:03:17]} 40. Qxb7 {[%emt 0:00:00]} Qxa3 {[%emt 0:04:12]} 41. Qxf7+ {[%emt 0:00:00]} Kh6 {[%emt 0:00:01]} 42. Qd7 {[%emt 0:00:00]} h4+ {[%emt 0:01:34]} 43. Kf2 {[%emt 0:00:00]} Qc5+ {[%emt 0:02:05]} 44. Kg2 {[%emt 0:00:00]} Qc2+ {[%emt 0:00:34]} 45. Kf1 {[%emt 0:00:00]} h3 {[%emt 0:00:08]} 46. Qe7 {[%emt 0:00:00]} Qg2+ {[%emt 0:04:45]} 47. Ke1 {[%emt 0:00:00]} Qg3+ {[%emt 0:04:36]} 48. Ke2 {[%emt 0:00:00]} Qg5 {[%emt 0:01:28]} 49. Qe8 {[%emt 0:00:00]} Qf6 {[%emt 0:01:18]} 50. Qe3+ {[%emt 0:00:00]} f4 {[%emt 0:08:18]} 51. Ke1 {[%emt 0:00:00]} 0-1

[Event "FIDE WCCC Open-08 2024"]
[Site "Montesilvano"]
[Date "2024.11.19"]
[Round "5.15"]
[White "Cardas, Serghei"]
[Black "Kapitanski, Furion"]
[Result "1/2-1/2"]
[ECO "D07"]
[WhiteElo "1627"]
[BlackElo "1707"]
[Annotator "NA RC"]
[PlyCount "53"]
[EventDate "2024.11.18"]
[EventType "swiss"]
[EventCountry "ITA"]
[SourceTitle "playchess.com"]
[Source "ChessBase"]
[SourceQuality "1"]
[TimeControl "5400+30"]

1. d4 {[%emt 0:00:04]} d5 {[%emt 0:00:01]} 2. c4 {[%emt 0:00:09]} Nc6 {[%emt 0:00:04]} 3. Nf3 {[%emt 0:01:13]} Bg4 {[%emt 0:00:07]} 4. cxd5 {[%emt 0:00:47]} Bxf3 {[%emt 0:00:10]} 5. dxc6 {[%emt 0:01:05]} Bxc6 {[%emt 0:00:24]} 6. Nc3 {[%emt 0:01:19]} Nf6 {[%emt 0:06:40]} 7. Bf4 {[%emt 0:04:32]} e6 {[%emt 0:00:33]} 8. e3 {[%emt 0:01:16]} Qd7 {[%emt 0:01:12]} 9. a3 {[%emt 0:05:41]} Nd5 {[%emt 0:16:28]} 10. Bg3 {[%emt 0:03:24]} Nxc3 {[%emt 0:06:56]} 11. bxc3 {[%emt 0:00:13]} O-O-O {[%emt 0:00:09]} 12. Qb3 {[%emt 0:02:11]} h5 {[%emt 0:06:32]} 13. Rb1 {[%emt 0:03:24]} b6 {[%emt 0:02:48]} 14. h3 {[%emt 0:01:07]} Bd6 {[%emt 0:28:36]} 15. Bxd6 {[%emt 0:04:58]} Qxd6 {[%emt 0:00:14]} 16. c4 {[%emt 0:01:09]} f5 {[%emt 0:11:39]} 17. Rd1 {[%emt 0:06:34]} Bb7 {[%emt 0:09:17]} 18. Rb1 {[%emt 0:15:01]} Qc6 {[%emt 0:02:14]} 19. Rg1 {[%emt 0:04:55]} f4 {[%emt 0:01:40]} 20. Be2 {[%emt 0:01:46]} e5 {[%emt 0:01:48]} 21. d5 {[%emt 0:01:01]} Qc5 {[%emt 0:00:09]} 22. Qb4 {[%emt 0:00:57]} Qxb4+ {[%emt 0:01:33]} 23. axb4 {[%emt 0:00:18]} g5 {[%emt 0:00:21]} 24. e4 {[%emt 0:00:27]} c6 {[%emt 0:00:28]} 25. f3 {[%emt 0:00:51]} h4 {[%emt 0:00:26]} 26. Kf2 {[%emt 0:00:26]} Kc7 {[%emt 0:00:25]} 27. Rgd1 {[%emt 0:39:12]} 1/2-1/2

[Event "FIDE WCCC Open-08 2024"]
[Site "Montesilvano"]
[Date "2024.11.19"]
[Round "5.16"]
[White "Sahin, Bora"]
[Black "Rajabov, Abdurahmon"]
[Result "1/2-1/2"]
[ECO "C04"]
[WhiteElo "1703"]
[BlackElo "1515"]
[Annotator "NA RC"]
[PlyCount "132"]
[EventDate "2024.11.18"]
[EventType "swiss"]
[EventCountry "ITA"]
[SourceTitle "playchess.com"]
[Source "ChessBase"]
[SourceQuality "1"]
[TimeControl "5400+30"]

1. e4 {[%emt 0:00:07]} e6 {[%emt 0:00:08]} 2. d4 {[%emt 0:00:09]} d5 {[%emt 0:00:03]} 3. Nd2 {[%emt 0:00:03]} Nc6 {[%emt 0:00:07]} 4. c3 {[%emt 0:01:01]} Nf6 {[%emt 0:00:11]} 5. e5 {[%emt 0:00:07]} Nd7 {[%emt 0:00:03]} 6. Bd3 {[%emt 0:00:13]} Be7 {[%emt 0:00:39]} 7. Qg4 {[%emt 0:00:41]} O-O {[%emt 0:00:27]} 8. Ne2 {[%emt 0:02:35]} f5 {[%emt 0:00:24]} 9. Qh3 {[%emt 0:01:36]} Bg5 {[%emt 0:01:02]} 10. g4 {[%emt 0:08:31]} g6 {[%emt 0:01:22]} 11. f4 {[%emt 0:01:50]} Be7 {[%emt 0:00:37]} 12. gxf5 {[%emt 0:00:09]} exf5 {[%emt 0:00:14]} 13. Ng3 {[%emt 0:03:11]} Qe8 {[%emt 0:01:18]} 14. Rg1 {[%emt 0:01:04]} Kh8 {[%emt 0:04:00]} 15. Qh6 {[%emt 0:03:35]} Rg8 {[%emt 0:01:39]} 16. Kf2 {[%emt 0:08:25]} Nf8 {[%emt 0:02:37]} 17. Nf3 {[%emt 0:03:09]} Ne6 {[%emt 0:00:21]} 18. Nxf5 {[%emt 0:01:48]} gxf5 {[%emt 0:00:56]} 19. Bxf5 {[%emt 0:00:09]} Qf7 {[%emt 0:00:08]} 20. Rxg8+ {[%emt 0:07:11]} Kxg8 {[%emt 0:01:33]} 21. Bc2 {[%emt 0:06:56]} Qg7 {[%emt 0:00:20]} 22. f5 {[%emt 0:01:23]} Qxh6 {[%emt 0:04:51]} 23. Bxh6 {[%emt 0:00:04]} Bf8 {[%emt 0:00:50]} 24. Rg1+ {[%emt 0:01:16]} Kh8 {[%emt 0:00:10]} 25. Bxf8 {[%emt 0:02:03]} Nxf8 {[%emt 0:00:09]} 26. Ng5 {[%emt 0:00:44]} Nd8 {[%emt 0:00:39]} 27. e6 {[%emt 0:00:26]} Bxe6 {[%emt 0:02:06]} 28. fxe6 {[%emt 0:00:06]} Nfxe6 {[%emt 0:00:20]} 29. Nxh7 {[%emt 0:06:48]} Nc6 {[%emt 0:00:33]} 30. Ng5 {[%emt 0:04:33]} Rf8+ {[%emt 0:00:50]} 31. Ke3 {[%emt 0:01:50]} Ncd8 {[%emt 0:00:23]} 32. Nxe6 {[%emt 0:03:22]} Nxe6 {[%emt 0:00:05]} 33. Rg6 {[%emt 0:01:55]} Re8 {[%emt 0:00:43]} 34. Kd2 {[%emt 0:02:03]} Nf4 {[%emt 0:01:06]} 35. Rh6+ {[%emt 0:02:00]} Kg8 {[%emt 0:05:36]} 36. Rf6 {[%emt 0:02:56]} Re2+ {[%emt 0:00:06]} 37. Kd1 {[%emt 0:00:11]} Rf2 {[%emt 0:00:35]} 38. Bb3 {[%emt 0:05:47]} Kg7 {[%emt 0:00:27]} 39. Rf5 {[%emt 0:01:06]} Kg6 {[%emt 0:00:10]} 40. Rf8 {[%emt 0:02:16]} Kg5 {[%emt 0:02:30]} 41. Rg8+ {[%emt 0:03:00]} Kh4 {[%emt 0:00:41]} 42. Rg7 {[%emt 0:00:51]} Nd3 {[%emt 0:00:40]} 43. Rh7+ {[%emt 0:03:30]} Kg4 {[%emt 0:00:54]} 44. h3+ {[%emt 0:02:16]} Kg5 {[%emt 0:01:18]} 45. h4+ {[%emt 0:00:36]} Kg4 {[%emt 0:00:16]} 46. Rxc7 {[%emt 0:09:58]} Nxb2+ {[%emt 0:00:18]} 47. Ke1 {[%emt 0:00:00]} Nd3+ {[%emt 0:00:09]} 48. Kd1 {[%emt 0:00:00]} Nb2+ {[%emt 0:00:01]} 49. Kc1 {[%emt 0:00:00]} Nd3+ {[%emt 0:00:06]} 50. Kb1 {[%emt 0:00:00]} Rb2+ {[%emt 0:00:06]} 51. Ka1 {[%emt 0:00:00]} Rf2 {[%emt 0:00:39]} 52. Bd1+ {[%emt 0:00:00]} Kxh4 {[%emt 0:00:44]} 53. Rxb7 {[%emt 0:00:00]} Rf1 {[%emt 0:00:21]} 54. Rb1 {[%emt 0:00:00]} Kg3 {[%emt 0:01:13]} 55. Bb3 {[%emt 0:00:00]} Rxb1+ {[%emt 0:02:56]} 56. Kxb1 {[%emt 0:00:00]} Nf4 {[%emt 0:00:09]} 57. c4 {[%emt 0:00:08]} dxc4 {[%emt 0:03:42]} 58. Bxc4 {[%emt 0:00:09]} Kg4 {[%emt 0:00:28]} 59. Kb2 {[%emt 0:00:47]} Kf5 {[%emt 0:00:14]} 60. Kc3 {[%emt 0:01:18]} Ke4 {[%emt 0:00:15]} 61. a4 {[%emt 0:00:22]} a5 {[%emt 0:00:08]} 62. Bf1 {[%emt 0:01:39]} Nd5+ {[%emt 0:00:22]} 63. Kc4 {[%emt 0:00:11]} Nb6+ {[%emt 0:00:20]} 64. Kb5 {[%emt 0:00:56]} Nxa4 {[%emt 0:00:05]} 65. Kxa4 {[%emt 0:00:38]} Kxd4 {[%emt 0:00:01]} 66. Kxa5 {[%emt 0:03:52]} Ke5 {[%emt 1:07:06]} 1/2-1/2

[Event "FIDE WCCC Open-08 2024"]
[Site "Montesilvano"]
[Date "2024.11.19"]
[Round "5.17"]
[White "Lan, Kai Zhou"]
[Black "Pera, Mikolaj"]
[Result "1/2-1/2"]
[ECO "B77"]
[WhiteElo "1784"]
[BlackElo "1446"]
[Annotator "NA RC"]
[PlyCount "117"]
[EventDate "2024.11.18"]
[EventType "swiss"]
[EventCountry "ITA"]
[SourceTitle "playchess.com"]
[Source "ChessBase"]
[SourceQuality "1"]
[TimeControl "5400+30"]

1. e4 {[%emt 0:00:03]} c5 {[%emt 0:00:08]} 2. Nf3 {[%emt 0:00:07]} d6 {[%emt 0:00:08]} 3. d4 {[%emt 0:00:07]} cxd4 {[%emt 0:00:08]} 4. Nxd4 {[%emt 0:00:02]} Nf6 {[%emt 0:00:10]} 5. Nc3 {[%emt 0:00:11]} g6 {[%emt 0:00:28]} 6. Be3 {[%emt 0:00:15]} Bg7 {[%emt 0:00:08]} 7. f3 {[%emt 0:00:09]} O-O {[%emt 0:00:10]} 8. Qd2 {[%emt 0:00:08]} Nc6 {[%emt 0:00:07]} 9. Bc4 {[%emt 0:00:10]} Nxd4 {[%emt 0:01:18]} 10. Bxd4 {[%emt 0:00:48]} Qa5 {[%emt 0:00:09]} 11. O-O-O {[%emt 0:02:34]} Be6 {[%emt 0:00:06]} 12. Bb3 {[%emt 0:05:40]} Bxb3 {[%emt 0:00:15]} 13. cxb3 {[%emt 0:00:25]} Rfc8 {[%emt 0:00:43]} 14. Kb1 {[%emt 0:01:12]} b5 {[%emt 0:07:59]} 15. g4 {[%emt 0:07:04]} b4 {[%emt 0:04:22]} 16. Na4 {[%emt 0:10:44]} Qb5 {[%emt 0:12:46]} 17. h4 {[%emt 0:00:53]} Qb7 {[%emt 0:01:31]} 18. Rde1 {[%emt 0:08:13]} Rc7 {[%emt 0:22:51]} 19. h5 {[%emt 0:03:05]} Rac8 {[%emt 0:02:07]} 20. h6 {[%emt 0:12:55]} Bh8 {[%emt 0:00:15]} 21. g5 {[%emt 0:00:31]} Nd7 {[%emt 0:00:12]} 22. Bxh8 {[%emt 0:01:44]} Kxh8 {[%emt 0:00:12]} 23. Qd4+ {[%emt 0:00:39]} f6 {[%emt 0:03:09]} 24. f4 {[%emt 0:02:27]} Qc6 {[%emt 0:01:27]} 25. Qd2 {[%emt 0:10:44]} Qc2+ {[%emt 0:03:34]} 26. Qxc2 {[%emt 0:00:08]} Rxc2 {[%emt 0:00:05]} 27. Rc1 {[%emt 0:03:44]} R2c7 {[%emt 0:01:15]} 28. Rcd1 {[%emt 0:02:07]} Kg8 {[%emt 0:01:28]} 29. Rd4 {[%emt 0:01:25]} Rb7 {[%emt 0:02:57]} 30. Rc1 {[%emt 0:01:12]} Rxc1+ {[%emt 0:05:58]} 31. Kxc1 {[%emt 0:00:02]} Kf7 {[%emt 0:00:55]} 32. Kc2 {[%emt 0:04:18]} Ke6 {[%emt 0:10:33]} 33. Kd3 {[%emt 0:04:40]} Rb8 {[%emt 0:06:51]} 34. Ke3 {[%emt 0:02:28]} Rb7 {[%emt 0:00:21]} 35. Rc4 {[%emt 0:02:21]} Kf7 {[%emt 0:02:41]} 36. Kd4 {[%emt 0:03:27]} e6 {[%emt 0:04:10]} 37. Rc6 {[%emt 0:02:02]} Ke7 {[%emt 0:00:16]} 38. Rc8 {[%emt 0:00:35]} fxg5 {[%emt 0:00:36]} 39. fxg5 {[%emt 0:00:55]} Nf8 {[%emt 0:00:47]} 40. Rc2 {[%emt 0:02:00]} Nd7 {[%emt 0:00:46]} 41. Rf2 {[%emt 0:02:09]} Ne5 {[%emt 0:00:25]} 42. Rf6 {[%emt 0:01:31]} Nd7 {[%emt 0:01:08]} 43. Rf3 {[%emt 0:00:40]} Ne5 {[%emt 0:00:10]} 44. Rg3 {[%emt 0:00:18]} Nd7 {[%emt 0:00:27]} 45. a3 {[%emt 0:00:18]} bxa3 {[%emt 0:00:39]} 46. bxa3 {[%emt 0:00:07]} Ne5 {[%emt 0:00:30]} 47. b4 {[%emt 0:00:50]} Nc6+ {[%emt 0:00:14]} 48. Kc4 {[%emt 0:00:22]} Ne5+ {[%emt 0:00:06]} 49. Kb3 {[%emt 0:00:20]} Nd7 {[%emt 0:01:18]} 50. Nc3 {[%emt 0:00:32]} Nc5+ {[%emt 0:00:39]} 51. Kc4 {[%emt 0:00:47]} Nd7 {[%emt 0:00:18]} 52. a4 {[%emt 0:00:52]} Ne5+ {[%emt 0:00:10]} 53. Kb3 {[%emt 0:00:10]} Nc6 {[%emt 0:00:16]} 54. Na2 {[%emt 0:00:36]} Nxb4 {[%emt 0:00:48]} 55. Nxb4 {[%emt 0:00:09]} a5 {[%emt 0:00:05]} 56. Re3 {[%emt 0:00:26]} Rxb4+ {[%emt 0:00:07]} 57. Ka3 {[%emt 0:00:03]} Rb7 {[%emt 0:00:18]} 58. e5 {[%emt 0:00:28]} dxe5 {[%emt 0:01:25]} 59. Rxe5 {[%emt 0:00:09]} 1/2-1/2

[Event "FIDE WCCC Open-08 2024"]
[Site "Montesilvano"]
[Date "2024.11.19"]
[Round "5.18"]
[White "Kalinin, Bogdan"]
[Black "Alloussi, Arian"]
[Result "0-1"]
[ECO "D05"]
[WhiteElo "1548"]
[BlackElo "1745"]
[Annotator "NA RC"]
[PlyCount "154"]
[EventDate "2024.11.18"]
[EventType "swiss"]
[EventCountry "ITA"]
[SourceTitle "playchess.com"]
[Source "ChessBase"]
[SourceQuality "1"]
[TimeControl "5400+30"]

1. d4 {[%emt 0:00:04]} d5 {[%emt 0:00:06]} 2. Nf3 {[%emt 0:00:07]} Nf6 {[%emt 0:00:06]} 3. e3 {[%emt 0:00:06]} e6 {[%emt 0:00:05]} 4. Bd3 {[%emt 0:00:16]} c5 {[%emt 0:00:10]} 5. b3 {[%emt 0:00:16]} Nc6 {[%emt 0:00:25]} 6. O-O {[%emt 0:00:35]} cxd4 {[%emt 0:01:44]} 7. exd4 {[%emt 0:00:06]} Bd6 {[%emt 0:00:18]} 8. Bb2 {[%emt 0:00:54]} O-O {[%emt 0:00:34]} 9. Ne5 {[%emt 0:00:12]} Qc7 {[%emt 0:00:59]} 10. f4 {[%emt 0:00:15]} Nb4 {[%emt 0:01:51]} 11. Nc3 {[%emt 0:04:45]} Nxd3 {[%emt 0:04:10]} 12. Qxd3 {[%emt 0:01:54]} a6 {[%emt 0:03:27]} 13. Nb1 {[%emt 0:10:57]} b6 {[%emt 0:07:56]} 14. Nd2 {[%emt 0:02:16]} a5 {[%emt 0:03:01]} 15. c4 {[%emt 0:01:38]} Ba6 {[%emt 0:01:36]} 16. Rf3 {[%emt 0:04:58]} Rac8 {[%emt 0:04:22]} 17. Rh3 {[%emt 0:02:01]} h6 {[%emt 0:02:04]} 18. Qg3 {[%emt 0:05:31]} Kh8 {[%emt 0:03:16]} 19. Rf1 {[%emt 0:15:10]} Nh7 {[%emt 0:05:47]} 20. f5 {[%emt 0:03:45]} Bxe5 {[%emt 0:12:13]} 21. dxe5 {[%emt 0:01:16]} exf5 {[%emt 0:01:21]} 22. Rxf5 {[%emt 0:01:34]} dxc4 {[%emt 0:05:05]} 23. bxc4 {[%emt 0:04:39]} Bxc4 {[%emt 0:03:05]} 24. e6 {[%emt 0:02:02]} Qxg3 {[%emt 0:01:35]} 25. Rxg3 {[%emt 0:00:36]} f6 {[%emt 0:01:02]} 26. Nxc4 {[%emt 0:13:24]} Rxc4 {[%emt 0:00:43]} 27. e7 {[%emt 0:01:03]} Re8 {[%emt 0:01:03]} 28. Rd5 {[%emt 0:03:49]} Re4 {[%emt 0:03:01]} 29. Ba3 {[%emt 0:01:01]} f5 {[%emt 0:04:34]} 30. Rd8 {[%emt 0:00:48]} Nf6 {[%emt 0:00:59]} 31. Rg6 {[%emt 0:00:48]} Rg8 {[%emt 0:02:44]} 32. Bb2 {[%emt 0:02:14]} Kh7 {[%emt 0:02:00]} 33. Rxg8 {[%emt 0:01:33]} Kxg8 {[%emt 0:01:32]} 34. Bxf6 {[%emt 0:02:31]} Kf7 {[%emt 0:00:17]} 35. Be5 {[%emt 0:01:39]} Rxe5 {[%emt 0:00:46]} 36. Rxb6 {[%emt 0:00:17]} Kxe7 {[%emt 0:01:21]} 37. Rb7+ {[%emt 0:00:49]} Kf6 {[%emt 0:02:37]} 38. Rb6+ {[%emt 0:00:05]} Re6 {[%emt 0:00:23]} 39. Rb5 {[%emt 0:00:11]} Re5 {[%emt 0:00:54]} 40. Rb6+ {[%emt 0:00:09]} Kg5 {[%emt 0:00:34]} 41. Kf2 {[%emt 0:02:44]} Rc5 {[%emt 0:00:16]} 42. Rb2 {[%emt 0:01:28]} Rc3 {[%emt 0:00:27]} 43. g3 {[%emt 0:01:27]} h5 {[%emt 0:01:04]} 44. Kg2 {[%emt 0:01:20]} h4 {[%emt 0:01:46]} 45. Kh3 {[%emt 0:01:53]} hxg3 {[%emt 0:00:49]} 46. hxg3 {[%emt 0:00:08]} Ra3 {[%emt 0:00:47]} 47. Rc2 {[%emt 0:00:43]} f4 {[%emt 0:01:29]} 48. Rc5+ {[%emt 0:00:43]} Kh6 {[%emt 0:00:42]} 49. Rc2 {[%emt 0:00:10]} Rxg3+ {[%emt 0:00:18]} 50. Kh2 {[%emt 0:00:16]} Ra3 {[%emt 0:00:48]} 51. Kg2 {[%emt 0:00:18]} g5 {[%emt 0:00:26]} 52. Kf2 {[%emt 0:00:26]} Kh5 {[%emt 0:00:28]} 53. Kg2 {[%emt 0:00:08]} Kg4 {[%emt 0:00:15]} 54. Kf2 {[%emt 0:00:12]} Rh3 {[%emt 0:00:27]} 55. Kg2 {[%emt 0:00:29]} f3+ {[%emt 0:00:08]} 56. Kg1 {[%emt 0:00:18]} Kg3 {[%emt 0:00:31]} 57. a4 {[%emt 0:00:24]} f2+ {[%emt 0:00:31]} 58. Rxf2 {[%emt 0:00:16]} Rh1+ {[%emt 0:00:07]} 59. Kxh1 {[%emt 0:00:08]} Kxf2 {[%emt 0:00:05]} 60. Kh2 {[%emt 0:00:05]} g4 {[%emt 0:00:06]} 61. Kh1 {[%emt 0:00:06]} Kg3 {[%emt 0:00:10]} 62. Kg1 {[%emt 0:00:14]} Kh3 {[%emt 0:00:19]} 63. Kh1 {[%emt 0:00:07]} g3 {[%emt 0:00:05]} 64. Kg1 {[%emt 0:00:57]} g2 {[%emt 0:00:11]} 65. Kf2 {[%emt 0:00:03]} Kh2 {[%emt 0:00:06]} 66. Ke2 {[%emt 0:00:06]} g1=Q {[%emt 0:00:08]} 67. Kd3 {[%emt 0:00:21]} Qd1+ {[%emt 0:00:10]} 68. Kc4 {[%emt 0:00:06]} Qxa4+ {[%emt 0:00:04]} 69. Kc5 {[%emt 0:00:06]} Qb4+ {[%emt 0:00:11]} 70. Kc6 {[%emt 0:00:06]} a4 {[%emt 0:00:10]} 71. Kc7 {[%emt 0:00:05]} Qd4 {[%emt 0:00:08]} 72. Kc6 {[%emt 0:00:18]} a3 {[%emt 0:00:02]} 73. Kc7 {[%emt 0:00:09]} a2 {[%emt 0:00:06]} 74. Kc6 {[%emt 0:00:04]} a1=Q {[%emt 0:24:24]} 75. Kc7 {[%emt 0:00:09]} Qc1+ {[%emt 0:00:00]} 76. Kb7 {[%emt 0:00:07]} Qdb2+ {[%emt 0:00:00]} 77. Ka8 {[%emt 0:00:13]} Qca1# {[%emt 0:00:00]} 0-1

[Event "FIDE WCCC Open-08 2024"]
[Site "Montesilvano"]
[Date "2024.11.19"]
[Round "5.19"]
[White "Mankovich, Yoav"]
[Black "Mohamed Fouad, Yahia"]
[Result "1-0"]
[ECO "B12"]
[WhiteElo "1490"]
[BlackElo "1705"]
[Annotator "NA RC"]
[PlyCount "103"]
[EventDate "2024.11.18"]
[EventType "swiss"]
[EventCountry "ITA"]
[SourceTitle "playchess.com"]
[Source "ChessBase"]
[SourceQuality "1"]
[TimeControl "5400+30"]

1. e4 {[%emt 0:00:11]} c6 {[%emt 0:00:10]} 2. d4 {[%emt 0:00:13]} d5 {[%emt 0:00:11]} 3. e5 {[%emt 0:00:06]} c5 {[%emt 0:00:25]} 4. dxc5 {[%emt 0:00:35]} Nc6 {[%emt 0:00:19]} 5. a3 {[%emt 0:00:32]} Nxe5 {[%emt 0:00:10]} 6. b4 {[%emt 0:00:47]} g6 {[%emt 0:00:32]} 7. Bb5+ {[%emt 0:00:59]} Bd7 {[%emt 0:01:11]} 8. Qxd5 {[%emt 0:00:15]} Bxb5 {[%emt 0:01:03]} 9. Qxe5 {[%emt 0:00:11]} Nf6 {[%emt 0:00:20]} 10. Nc3 {[%emt 0:00:23]} Bc6 {[%emt 0:03:39]} 11. Nf3 {[%emt 0:00:24]} Bg7 {[%emt 0:01:54]} 12. Bb2 {[%emt 0:00:25]} O-O {[%emt 0:01:53]} 13. Rd1 {[%emt 0:01:13]} Qc8 {[%emt 0:02:21]} 14. O-O {[%emt 0:03:25]} Ne4 {[%emt 0:03:53]} 15. Nd5 {[%emt 0:03:31]} Bxe5 {[%emt 0:01:51]} 16. Nxe7+ {[%emt 0:00:55]} Kg7 {[%emt 0:01:17]} 17. Bxe5+ {[%emt 0:00:32]} f6 {[%emt 0:00:12]} 18. Nxc8 {[%emt 0:00:29]} Raxc8 {[%emt 0:05:10]} 19. Bb2 {[%emt 0:00:43]} Rcd8 {[%emt 0:01:31]} 20. Rd3 {[%emt 0:03:21]} Bb5 {[%emt 0:03:40]} 21. Rxd8 {[%emt 0:01:04]} Rxd8 {[%emt 0:00:23]} 22. Re1 {[%emt 0:01:52]} Bc6 {[%emt 0:02:01]} 23. Nd4 {[%emt 0:01:17]} Re8 {[%emt 0:01:31]} 24. Nxc6 {[%emt 0:03:39]} bxc6 {[%emt 0:00:09]} 25. f3 {[%emt 0:02:37]} Nd6 {[%emt 0:07:16]} 26. Rxe8 {[%emt 0:00:11]} Nxe8 {[%emt 0:00:06]} 27. Kf2 {[%emt 0:00:23]} Kf7 {[%emt 0:00:11]} 28. Ke3 {[%emt 0:00:21]} Ke6 {[%emt 0:00:31]} 29. Kd4 {[%emt 0:13:54]} Nc7 {[%emt 1:01:10]} 30. c4 {[%emt 0:03:49]} Kf5 {[%emt 0:00:00]} 31. Bc1 {[%emt 0:08:16]} a6 {[%emt 0:00:00]} 32. g4+ {[%emt 0:01:41]} Ke6 {[%emt 0:00:00]} 33. Bf4 {[%emt 0:00:42]} Ne8 {[%emt 0:00:00]} 34. a4 {[%emt 0:01:17]} g5 {[%emt 0:00:00]} 35. Bg3 {[%emt 0:01:18]} f5 {[%emt 0:00:00]} 36. gxf5+ {[%emt 0:06:47]} Kxf5 {[%emt 0:00:00]} 37. b5 {[%emt 0:01:34]} cxb5 {[%emt 0:00:00]} 38. cxb5 {[%emt 0:00:30]} axb5 {[%emt 0:00:00]} 39. axb5 {[%emt 0:00:19]} Nf6 {[%emt 0:00:00]} 40. b6 {[%emt 0:01:20]} Nd7 {[%emt 0:00:00]} 41. b7 {[%emt 0:00:31]} g4 {[%emt 0:00:00]} 42. fxg4+ {[%emt 0:00:23]} Kxg4 {[%emt 0:00:00]} 43. b8=Q {[%emt 0:00:24]} Nxb8 {[%emt 0:00:00]} 44. Bxb8 {[%emt 0:00:11]} Kf5 {[%emt 0:00:00]} 45. Kd5 {[%emt 0:00:41]} Kf6 {[%emt 0:00:00]} 46. Kd6 {[%emt 0:00:39]} Kf7 {[%emt 0:00:00]} 47. c6 {[%emt 0:00:19]} Ke8 {[%emt 0:00:00]} 48. c7 {[%emt 0:00:21]} Kf7 {[%emt 0:00:00]} 49. c8=Q {[%emt 0:00:18]} h5 {[%emt 0:00:00]} 50. Qe6+ {[%emt 0:00:25]} Kg7 {[%emt 0:00:00]} 51. Ke7 {[%emt 0:00:32]} Kh8 {[%emt 0:00:00]} 52. Be5+ {[%emt 0:00:32]} 1-0